[Event "Frauenbundesliga 2024-25"]
[Site "Germany"]
[Date "2025.02.15"]
[Round "5.6"]
[White "Tammert, Iamze"]
[Black "Schuster, Rebekka"]
[Result "1-0"]
[Annotator "ChessBase"]
[ECO "A92"]
[WhiteElo "2228"]
[BlackElo "1825"]
[PlyCount "85"]
[EventDate "2024.11.06"]
[EventType "team-tourn"]
[EventCountry "GER"]
[SourceTitle "playchess.com"]
[Source "ChessBase"]
[SourceQuality "1"]
[TimeControl "40/5400+30:1800+30"]

1. c4 {[%emt 0:00:03]} e6 {[%emt 0:00:03]} 2. Nf3 {[%emt 0:00:16]} f5 {[%emt 0:00:04]} 3. Nc3 {[%emt 0:00:25]} Nf6 {[%emt 0:00:08]} 4. d4 {[%emt 0:00:58]} Be7 {[%emt 0:02:26]} 5. g3 {[%emt 0:04:31]} O-O {[%emt 0:00:21]} 6. Bg2 {[%emt 0:00:02]} Ne4 {[%emt 0:04:09]} 7. Qb3 {[%emt 0:04:58]} Nc6 {[%emt 0:09:32]} 8. O-O {[%emt 0:00:36]} Nxc3 {[%emt 0:04:49]} 9. Qxc3 {[%emt 0:00:23]} Bf6 {[%emt 0:01:21]} 10. Rd1 {[%emt 0:02:13]} d6 {[%emt 0:03:20]} 11. Qb3 {[%emt 0:02:25]} Ne7 {[%emt 0:10:08]} 12. Bg5 {[%emt 0:19:59]} Ng6 {[%emt 0:01:19]} 13. Bxf6 {[%emt 0:00:28]} Qxf6 {[%emt 0:00:06]} 14. e3 {[%emt 0:00:44]} e5 {[%emt 0:09:35]} 15. c5+ {[%emt 0:04:08]} Kh8 {[%emt 0:01:03]} 16. cxd6 {[%emt 0:00:56]} cxd6 {[%emt 0:03:51]} 17. Rac1 {[%emt 0:05:15]} f4 {[%emt 0:07:04]} 18. dxe5 {[%emt 0:04:16]} dxe5 {[%emt 0:00:26]} 19. exf4 {[%emt 0:07:38]} exf4 {[%emt 0:02:16]} 20. Qc3 {[%emt 0:00:08]} Qb6 {[%emt 0:11:40]} 21. Qd4 {[%emt 0:01:00]} Bg4 {[%emt 0:01:59]} 22. Rd3 {[%emt 0:04:01]} Bxf3 {[%emt 0:06:31]} 23. Qxb6 {[%emt 0:00:38]} axb6 {[%emt 0:00:04]} 24. Rxf3 {[%emt 0:00:15]} Rxa2 {[%emt 0:01:06]} 25. Rb3 {[%emt 0:00:24]} fxg3 {[%emt 0:00:54]} 26. hxg3 {[%emt 0:00:26]} Ne5 {[%emt 0:05:32]} 27. Bxb7 {[%emt 0:06:01]} h6 {[%emt 0:02:57]} 28. Rc7 {[%emt 0:03:19]} b5 {[%emt 0:02:45]} 29. Rc5 {[%emt 0:02:56]} Nc4 {[%emt 0:03:27]} 30. Rcxb5 {[%emt 0:00:59]} Nd6 {[%emt 0:01:48]} 31. Rb6 {[%emt 0:00:54]} Nc4 {[%emt 0:00:16]} 32. R6b4 {[%emt 0:00:09]} Na5 {[%emt 0:03:34]} 33. Rc3 {[%emt 0:02:30]} Nxb7 {[%emt 0:00:55]} 34. Rxb7 {[%emt 0:00:02]} Ra6 {[%emt 0:00:10]} 35. Rc2 {[%emt 0:01:09]} Raf6 {[%emt 0:00:20]} 36. b4 {[%emt 0:00:07]} Kg8 {[%emt 0:00:34]} 37. b5 {[%emt 0:04:33]} Rg6 {[%emt 0:00:29]} 38. b6 {[%emt 0:03:25]} Rff6 {[%emt 0:00:15]} 39. Rb8+ {[%emt 0:01:23]} Kf7 {[%emt 0:01:36]} 40. Rc7+ {[%emt 0:00:39]} Ke6 {[%emt 0:00:08]} 41. Re8+ {[%emt 0:30:08]} Kd6 {[%emt 0:30:13]} 42. Rd8+ {[%emt 0:00:06]} Ke5 {[%emt 0:00:22]} 43. b7 {[%emt 0:16:34]} 1-0

[Event "Frauenbundesliga 2024-25"]
[Site "Germany"]
[Date "2025.02.15"]
[Round "5.6"]
[White "Moeller, Lisa-Marie"]
[Black "Rosmait, Emily"]
[Result "0-1"]
[Annotator "NA"]
[ECO "C29"]
[WhiteElo "1966"]
[BlackElo "1954"]
[PlyCount "156"]
[EventDate "2024.11.06"]
[EventType "team-tourn"]
[EventCountry "GER"]
[SourceTitle "playchess.com"]
[Source "ChessBase"]
[SourceQuality "1"]
[TimeControl "40/5400+30:1800+30"]

1. e4 {[%emt 0:00:03]} e5 {[%emt 0:00:10]} 2. Nc3 {[%emt 0:00:04]} Nf6 {[%emt 0:00:09]} 3. f4 {[%emt 0:00:02]} d5 {[%emt 0:00:26]} 4. fxe5 {[%emt 0:00:06]} Nxe4 {[%emt 0:00:08]} 5. Qf3 {[%emt 0:00:03]} Nxc3 {[%emt 0:00:30]} 6. bxc3 {[%emt 0:00:04]} Be7 {[%emt 0:00:50]} 7. d4 {[%emt 0:00:09]} c5 {[%emt 0:05:45]} 8. Bb5+ {[%emt 0:03:53]} Nc6 {[%emt 0:00:56]} 9. Ne2 {[%emt 0:04:40]} O-O {[%emt 0:00:14]} 10. O-O {[%emt 0:02:51]} cxd4 {[%emt 0:01:07]} 11. cxd4 {[%emt 0:03:56]} Nxe5 {[%emt 0:02:20]} 12. dxe5 {[%emt 0:06:33]} Qb6+ {[%emt 0:01:07]} 13. Kh1 {[%emt 0:01:50]} Qxb5 {[%emt 0:00:21]} 14. Nc3 {[%emt 0:01:21]} Qc4 {[%emt 0:21:34]} 15. Nxd5 {[%emt 0:03:25]} Bc5 {[%emt 0:02:54]} 16. Bg5 {[%emt 0:12:24]} Qg4 {[%emt 0:22:22]} 17. Ne7+ {[%emt 0:15:33]} Bxe7 {[%emt 0:13:07]} 18. Bxe7 {[%emt 0:02:13]} Qxf3 {[%emt 0:00:35]} 19. Rxf3 {[%emt 0:00:36]} Re8 {[%emt 0:00:57]} 20. Bd6 {[%emt 0:00:49]} Be6 {[%emt 0:01:52]} 21. Kg1 {[%emt 0:10:36]} Rec8 {[%emt 0:03:43]} 22. c3 {[%emt 0:04:39]} Rc4 {[%emt 0:03:26]} 23. Kf2 {[%emt 0:11:02]} Rac8 {[%emt 0:01:24]} 24. Bb4 {[%emt 0:06:16]} h6 {[%emt 0:03:47]} 25. a4 {[%emt 0:01:19]} Re4 {[%emt 0:03:23]} 26. Re3 {[%emt 0:01:11]} Rf4+ {[%emt 0:02:28]} 27. Kg3 {[%emt 0:01:36]} Rcc4 {[%emt 0:02:09]} 28. a5 {[%emt 0:01:13]} h5 {[%emt 0:04:45]} 29. h3 {[%emt 0:03:46]} Bd5 {[%emt 0:00:59]} 30. Rd1 {[%emt 0:00:50]} Bc6 {[%emt 0:00:12]} 31. Rd2 {[%emt 0:01:12]} Rce4 {[%emt 0:01:32]} 32. Rxe4 {[%emt 0:01:16]} Rxe4 {[%emt 0:00:25]} 33. Bd6 {[%emt 0:00:21]} Re3+ {[%emt 0:00:41]} 34. Kh4 {[%emt 0:00:52]} Rxc3 {[%emt 0:00:11]} 35. Kxh5 {[%emt 0:00:28]} Rc4 {[%emt 0:00:56]} 36. g4 {[%emt 0:00:23]} Ra4 {[%emt 0:00:24]} 37. Bc7 {[%emt 0:00:10]} Kf8 {[%emt 0:00:38]} 38. Kg5 {[%emt 0:01:03]} Ke7 {[%emt 0:00:31]} 39. Rd3 {[%emt 0:00:40]} Bd7 {[%emt 0:00:31]} 40. Rb3 {[%emt 0:00:14]} Bc8 {[%emt 0:00:27]} 41. Rd3 {[%emt 0:04:10]} Rc4 {[%emt 0:05:05]} 42. Bd6+ {[%emt 0:02:17]} Ke6 {[%emt 0:02:29]} 43. Rf3 {[%emt 0:07:41]} Re4 {[%emt 0:13:40]} 44. Bb8 {[%emt 0:06:08]} Bd7 {[%emt 0:01:24]} 45. Rd3 {[%emt 0:05:27]} Bc6 {[%emt 0:01:15]} 46. a6 {[%emt 0:01:53]} Bd5 {[%emt 0:04:10]} 47. axb7 {[%emt 0:00:59]} Bxb7 {[%emt 0:00:17]} 48. Ra3 {[%emt 0:01:28]} a6 {[%emt 0:00:35]} 49. Rb3 {[%emt 0:05:15]} Bc8 {[%emt 0:00:48]} 50. Rc3 {[%emt 0:00:00]} Bd7 {[%emt 0:00:36]} 51. Rd3 {[%emt 0:00:00]} a5 {[%emt 0:01:03]} 52. Rd6+ {[%emt 0:00:00]} Ke7 {[%emt 0:00:21]} 53. Ra6 {[%emt 0:00:00]} a4 {[%emt 0:01:24]} 54. Bd6+ {[%emt 0:00:45]} Kd8 {[%emt 0:00:53]} 55. Ra8+ {[%emt 0:00:58]} Bc8 {[%emt 0:00:24]} 56. Ra5 {[%emt 0:00:38]} Be6 {[%emt 0:00:53]} 57. Bf8 {[%emt 0:00:29]} g6 {[%emt 0:00:39]} 58. Bd6 {[%emt 0:00:41]} Kd7 {[%emt 0:00:14]} 59. Ra6 {[%emt 0:00:32]} Bb3 {[%emt 0:01:36]} 60. Kh4 {[%emt 0:00:33]} Re3 {[%emt 0:00:38]} 61. Rb6 {[%emt 0:00:32]} Rf3 {[%emt 0:00:40]} 62. Ra6 {[%emt 0:00:12]} Ke6 {[%emt 0:01:07]} 63. Ra5 {[%emt 0:00:38]} f6 {[%emt 0:00:49]} 64. Bb8 {[%emt 0:00:20]} g5+ {[%emt 0:00:43]} 65. Kh5 {[%emt 0:00:01]} Rxh3+ {[%emt 0:00:33]} 66. Kg6 {[%emt 0:00:01]} Bc2+ {[%emt 0:00:31]} 67. Kg7 {[%emt 0:00:04]} Rh7+ {[%emt 0:00:31]} 68. Kg8 {[%emt 0:00:07]} Rb7 {[%emt 0:00:42]} 69. Bd6 {[%emt 0:01:06]} Bd1 {[%emt 0:00:31]} 70. exf6 {[%emt 0:01:11]} Kxd6 {[%emt 0:00:30]} 71. f7 {[%emt 0:00:47]} Bb3 {[%emt 0:00:09]} 72. Rxa4 {[%emt 0:00:29]} Rxf7 {[%emt 0:00:51]} 73. Ra6+ {[%emt 0:00:32]} Ke5 {[%emt 0:00:27]} 74. Kh8 {[%emt 0:00:41]} Kf4 {[%emt 0:00:25]} 75. Rb6 {[%emt 0:00:23]} Bd5 {[%emt 0:00:26]} 76. Rb4+ {[%emt 0:00:26]} Kg3 {[%emt 0:00:26]} 77. Rb5 {[%emt 0:00:29]} Rd7 {[%emt 0:00:12]} 78. Rb4 {[%emt 0:00:11]} Bf3 {[%emt 0:00:32]} 0-1

[Event "Frauenbundesliga 2024-25"]
[Site "Germany"]
[Date "2025.02.15"]
[Round "5.6"]
[White "Lukas, Olivia"]
[Black "Savina, Anastasia"]
[Result "0-1"]
[Annotator "ChessBase"]
[ECO "B22"]
[WhiteElo "1444"]
[BlackElo "2324"]
[PlyCount "50"]
[EventDate "2024.11.06"]
[EventType "team-tourn"]
[EventCountry "GER"]
[SourceTitle "playchess.com"]
[Source "ChessBase"]
[SourceQuality "1"]
[TimeControl "40/5400+30:1800+30"]

1. e4 {[%emt 0:00:02]} c5 {[%emt 0:00:16]} 2. c3 {[%emt 0:00:04]} Nf6 {[%emt 0:00:13]} 3. e5 {[%emt 0:00:08]} Nd5 {[%emt 0:00:05]} 4. Nf3 {[%emt 0:00:07]} Nc6 {[%emt 0:00:31]} 5. Bc4 {[%emt 0:00:08]} Nb6 {[%emt 0:01:13]} 6. Bb3 {[%emt 0:00:08]} c4 {[%emt 0:01:01]} 7. Bc2 {[%emt 0:00:12]} d6 {[%emt 0:00:06]} 8. exd6 {[%emt 0:00:23]} Qxd6 {[%emt 0:00:21]} 9. O-O {[%emt 0:00:32]} g6 {[%emt 0:08:16]} 10. Re1 {[%emt 0:02:58]} Bg7 {[%emt 0:02:17]} 11. b3 {[%emt 0:03:51]} O-O {[%emt 0:02:34]} 12. Ba3 {[%emt 0:01:21]} Qc7 {[%emt 0:03:48]} 13. Be4 {[%emt 0:04:19]} Re8 {[%emt 0:03:39]} 14. Qc2 {[%emt 0:08:03]} Bd7 {[%emt 0:09:05]} 15. h4 {[%emt 0:02:27]} Rad8 {[%emt 0:11:06]} 16. h5 {[%emt 0:02:47]} f5 {[%emt 0:03:47]} 17. hxg6 {[%emt 0:03:59]} hxg6 {[%emt 0:01:18]} 18. Bxc6 {[%emt 0:01:31]} Bxc6 {[%emt 0:00:19]} 19. Ng5 {[%emt 0:02:42]} Qf4 {[%emt 0:06:31]} 20. Ne6 {[%emt 0:18:06]} Qg4 {[%emt 0:00:19]} 21. f3 {[%emt 0:00:59]} Bxf3 {[%emt 0:03:21]} 22. d4 {[%emt 0:05:24]} cxd3 {[%emt 0:01:27]} 23. Qf2 {[%emt 0:03:13]} Bxg2 {[%emt 0:03:26]} 24. Nxd8 {[%emt 0:04:45]} Be4+ {[%emt 0:00:57]} 25. Kf1 {[%emt 0:02:26]} Qh3+ {[%emt 0:00:07]} 0-1

[Event "Frauenbundesliga 2024-25"]
[Site "Germany"]
[Date "2025.02.15"]
[Round "5.7"]
[White "Tsolakidou, Stavroula"]
[Black "Batsiashvili, Nino"]
[Result "0-1"]
[Annotator "TA"]
[ECO "E51"]
[WhiteElo "2447"]
[BlackElo "2470"]
[PlyCount "98"]
[EventDate "2024.11.06"]
[EventType "team-tourn"]
[EventCountry "GER"]
[SourceTitle "playchess.com"]
[Source "ChessBase"]
[SourceQuality "1"]
[TimeControl "40/5400+30:1800+30"]

{[%evp 17,98,39,25,25,36,39,33,-4,23,-25,-4,-16,0,-51,-39,-56,-47,-47,-48,-44,-52,-54,-52,-56,-43,-52,-26,-22,-22,-22,-21,-62,-56,-61,-50,-66,-66,-72,-66,-71,-58,-71,-75,-84,-90,-90,-86,-79,-82,-110,-101,-131,-143,-97,-139,-138,-153,-148,-156,-245,-238,-209,-140,-140,-135,-160,-173,-179,-159,-243,-225,-216,-224,-508,-475,-459,-450,-594,-585,-531,-501,-684,-643]} 1. d4 {[%emt 0:00:04]} Nf6 {[%emt 0:00:10]} 2. c4 {[%emt 0:00:08]} e6 {[%emt 0:00:04]} 3. Nc3 {[%emt 0:00:16]} Bb4 {[%emt 0:00:05]} 4. e3 {[%emt 0:00:12]} O-O {[%emt 0:00:17]} 5. Bd3 {[%emt 0:00:17]} d5 {[%emt 0:00:17]} 6. a3 {[%emt 0:00:24]} dxc4 {[%emt 0:00:06]} 7. Bxc4 {[%emt 0:00:08]} Bd6 {[%emt 0:00:31]} 8. Nf3 {[%emt 0:02:46]} Nc6 {[%emt 0:00:26][%cal Bb8c6,Bc6e7,Be7g6,Bg6h4,Bh4f3,Bf3d2][%mdl 32]} 9. e4 {[%emt 0:02:47]} e5 {[%emt 0:00:19]} 10. d5 {[%emt 0:00:43] E51: Nimzo-Indian: Rubinstein: 4...0-0 5 Nf3 d5.} Ne7 {[%emt 0:00:06]} 11. h3 {[%emt 0:15:09]} h6 {[%emt 0:02:10]} 12. g4 $146 {[%emt 0:08:25] White is slightly better.} ({Predecessor:} 12. Be3 a6 13. Qd2 Bd7 14. g4 b5 15. Bb3 a5 16. g5 hxg5 17. Bxg5 Nh5 18. Rg1 {1-0 Lobanov,S (2520)-Kollars,D (2633) Titled Tuesday intern op 10th Oct Late blitz 2023 (4)}) 12... Nh7 {[%emt 0:07:02]} 13. Be3 {[%emt 0:08:16]} (13. g5 {deserves consideration.}) 13... Ng6 $11 {[%emt 0:05:37]} 14. Qd2 {[%emt 0:17:49]} a6 {[%emt 0:06:11]} 15. g5 {[%emt 0:04:23]} (15. Be2 $11) 15... hxg5 $15 {[%emt 0:17:23]} 16. Nxg5 {[%emt 0:04:04]} Nh4 $1 {[%emt 0:07:04] White must now prevent ...Nxg5.} 17. O-O-O {[%emt 0:05:28]} Nxg5 $1 {[%emt 0:03:04]} 18. Bxg5 {[%emt 0:00:06] [#]} Nf3 $1 {[%emt 0:00:03][%csl LRd2,LRg5]} 19. Bxd8 {[%emt 0:00:06]} Nxd2 {[%emt 0:00:03]} 20. Rxd2 {[%emt 0:00:31]} Rxd8 {[%emt 0:00:04]} 21. Be2 {[%emt 0:00:05]} Kf8 {[%emt 0:07:44]} 22. Nd1 {[%emt 0:07:37][%cal Bc3d1,Bd1e3,Be3c4][%mdl 32]} Ke7 {[%emt 0:01:42]} 23. Ne3 {[%emt 0:00:37]} Bd7 {[%emt 0:09:33]} 24. Bg4 {[%emt 0:00:39]} g6 {[%emt 0:06:32]} 25. Bxd7 {[%emt 0:05:47]} Kxd7 {[%emt 0:00:15]} 26. Nc4 {[%emt 0:00:10]} Rh8 {[%emt 0:02:15]} 27. Rd3 {[%emt 0:05:28]} Rh4 {[%emt 0:01:45]} 28. Rf3 {[%emt 0:01:59]} Ke7 {[%emt 0:05:37]} 29. Re1 {[%emt 0:00:44]} Rah8 {[%emt 0:04:14]} 30. Rb3 {[%emt 0:02:17]} b5 {[%emt 0:01:59]} 31. Nxd6 {[%emt 0:01:34]} cxd6 $17 {[%emt 0:01:38][%mdl 4096] Endgame KRR-KRR} 32. Rc3 {[%emt 0:01:30]} Kd7 {[%emt 0:00:18] Dodges Rc7+} 33. Ree3 {[%emt 0:01:37]} Rf4 {[%emt 0:02:51]} 34. Re2 {[%emt 0:01:41]} Rc8 $1 {[%emt 0:01:25]} 35. Rxc8 {[%emt 0:03:01]} Kxc8 {[%emt 0:00:01] KR-KR} 36. Kd1 {[%emt 0:00:18] [#]} Rf3 $1 {[%emt 0:03:32]} 37. Rc2+ {[%emt 0:00:20]} Kd7 {[%emt 0:00:05]} 38. Ke2 {[%emt 0:00:05]} (38. h4 $17 {was called for.}) 38... Rxh3 $19 {[%emt 0:00:45]} 39. Rc6 {[%emt 0:00:21]} Rb3 {[%emt 0:00:38]} 40. Rxa6 {[%emt 0:00:10]} Rxb2+ {[%emt 0:00:02]} 41. Kf3 {[%emt 0:31:17] [#]} f5 $1 {[%emt 0:30:54] Black is more active.} 42. Ra7+ {[%emt 0:00:00]} Kc8 {[%emt 0:00:00]} 43. Rg7 {[%emt 0:00:00]} (43. a4 $17) 43... Rb3+ {[%emt 0:00:00]} 44. Ke2 {[%emt 0:00:00]} fxe4 {[%emt 0:00:00]} ({Don't do} 44... Rxa3 45. Rxg6 Ra2+ (45... fxe4 46. Rxd6 Rd3 47. f3 $17) 46. Ke1 $17) 45. Rxg6 $2 {[%emt 0:00:00]} (45. Ra7) 45... Kc7 {[%emt 0:00:00] Black is clearly winning.} ({Inferior is} 45... Rxa3 46. Rxd6 Rd3 47. Re6 $11) 46. Rg3 {[%emt 0:00:00] [#]} Rd3 {[%emt 0:00:00][%mdl 512]} 47. Rg4 {[%emt 0:02:40]} (47. Rxd3 exd3+ 48. Kxd3 Kb6) (47. Rg1 Rxd5) 47... Rxa3 {[%emt 0:00:00]} 48. Rxe4 {[%emt 0:00:05]} Kb6 {[%emt 0:00:00]} 49. f4 {[%emt 0:01:36]} Ra4 {[%emt 0:00:00] Weighted Error Value: White=0.33/Black=0.04 (flawless)   Mistake:       	White=5     	---        Inaccurate:     	White=5     	Black=3      OK:         	White=11    	Black=16     Best:        	White=3     	Black=7      Strong:       	---       	Black=6} 0-1

[Event "Frauenbundesliga 2024-25"]
[Site "Germany"]
[Date "2025.02.15"]
[Round "5.7"]
[White "Peglau, Charis"]
[Black "Butenandt, Svenja"]
[Result "0-1"]
[Annotator "ChessBase"]
[ECO "A34"]
[WhiteElo "2203"]
[BlackElo "2147"]
[PlyCount "84"]
[EventDate "2024.11.06"]
[EventType "team-tourn"]
[EventCountry "GER"]
[SourceTitle "playchess.com"]
[Source "ChessBase"]
[SourceQuality "1"]
[TimeControl "40/5400+30:1800+30"]

1. Nf3 {[%emt 0:00:03]} Nf6 {[%emt 0:00:08]} 2. c4 {[%emt 0:00:06]} c5 {[%emt 0:00:09]} 3. Nc3 {[%emt 0:01:21]} Nc6 {[%emt 0:00:25]} 4. g3 {[%emt 0:00:17]} d5 {[%emt 0:00:32]} 5. cxd5 {[%emt 0:01:04]} Nxd5 {[%emt 0:00:05]} 6. Bg2 {[%emt 0:03:44]} Nc7 {[%emt 0:00:12]} 7. O-O {[%emt 0:01:58]} e5 {[%emt 0:00:43]} 8. d3 {[%emt 0:05:10]} Be7 {[%emt 0:03:37]} 9. Be3 {[%emt 0:04:16]} O-O {[%emt 0:02:41]} 10. Nd2 {[%emt 0:07:10]} Bd7 {[%emt 0:01:37]} 11. Rc1 {[%emt 0:28:25]} Rc8 {[%emt 0:09:02]} 12. a3 {[%emt 0:06:33]} b6 {[%emt 0:06:23]} 13. Nc4 {[%emt 0:03:22]} f6 {[%emt 0:01:31]} 14. Bd2 {[%emt 0:02:04]} Nd4 {[%emt 0:12:31]} 15. Nd5 {[%emt 0:08:26]} Nxd5 {[%emt 0:00:54]} 16. Bxd5+ {[%emt 0:00:02]} Kh8 {[%emt 0:00:04]} 17. Bg2 {[%emt 0:08:18]} Qe8 {[%emt 0:03:58]} 18. b3 {[%emt 0:08:07]} Bg4 {[%emt 0:03:49]} 19. f3 {[%emt 0:00:31]} Be6 {[%emt 0:05:08]} 20. e3 {[%emt 0:01:29]} Nc6 {[%emt 0:02:59]} 21. f4 {[%emt 0:04:07]} exf4 {[%emt 0:04:15]} 22. gxf4 {[%emt 0:01:11]} Qg6 {[%emt 0:03:58]} 23. e4 {[%emt 0:01:27]} Bg4 {[%emt 0:00:45]} 24. Qe1 {[%emt 0:00:43]} Nd4 {[%emt 0:00:43]} 25. Rb1 {[%emt 0:01:08]} Be2 {[%emt 0:06:28]} 26. f5 {[%emt 0:00:20]} Qh5 {[%emt 0:03:00]} 27. Rb2 {[%emt 0:01:09]} Bxf1 {[%emt 0:00:24]} 28. Qxf1 {[%emt 0:00:12]} b5 {[%emt 0:01:24]} 29. Na5 {[%emt 0:01:10]} Bd6 {[%emt 0:00:50]} 30. h3 {[%emt 0:00:16]} Ne2+ {[%emt 0:01:36]} 31. Kf2 {[%emt 0:00:06]} Ng3 {[%emt 0:03:00]} 32. Qe1 {[%emt 0:00:52]} Be5 {[%emt 0:01:14]} 33. Bc3 {[%emt 0:00:15]} Qh4 {[%emt 0:02:29]} 34. Kg1 {[%emt 0:00:56]} Bxc3 {[%emt 0:01:42]} 35. Qxc3 {[%emt 0:00:02]} b4 {[%emt 0:01:40]} 36. axb4 {[%emt 0:00:38]} cxb4 {[%emt 0:00:17]} 37. Qd2 {[%emt 0:00:13]} Rc3 {[%emt 0:01:51]} 38. Qd1 {[%emt 0:01:16]} Qf4 {[%emt 0:00:41]} 39. Nc4 {[%emt 0:00:52]} Rc1 {[%emt 0:00:10]} 40. Rb1 {[%emt 0:00:30]} Rxd1+ {[%emt 0:00:30]} 41. Rxd1 {[%emt 0:30:01]} Ne2+ {[%emt 0:30:12]} 42. Kh1 {[%emt 0:00:13]} Rd8 {[%emt 0:00:37]} 0-1

[Event "Frauenbundesliga 2024-25"]
[Site "Germany"]
[Date "2025.02.15"]
[Round "5.8"]
[White "Javakhishvili, Lela"]
[Black "Sliwicka, Alicja"]
[Result "1-0"]
[Annotator "ChessBase"]
[ECO "A13"]
[WhiteElo "2426"]
[BlackElo "2352"]
[PlyCount "137"]
[EventDate "2024.11.06"]
[EventType "team-tourn"]
[EventCountry "GER"]
[SourceTitle "playchess.com"]
[Source "ChessBase"]
[SourceQuality "1"]
[TimeControl "40/5400+30:1800+30"]

1. c4 {[%emt 0:00:26]} e6 {[%emt 0:00:28]} 2. Nf3 {[%emt 0:00:11]} d5 {[%emt 0:00:11]} 3. g3 {[%emt 0:00:19]} Nf6 {[%emt 0:00:23]} 4. Bg2 {[%emt 0:00:09]} d4 {[%emt 0:00:54]} 5. O-O {[%emt 0:00:45]} Nc6 {[%emt 0:00:19]} 6. d3 {[%emt 0:00:29]} Bc5 {[%emt 0:01:44]} 7. Nbd2 {[%emt 0:00:28]} h6 {[%emt 0:13:35]} 8. Nb3 {[%emt 0:02:48]} Be7 {[%emt 0:03:53]} 9. e3 {[%emt 0:01:56]} e5 {[%emt 0:00:47]} 10. exd4 {[%emt 0:05:52]} exd4 {[%emt 0:00:21]} 11. Re1 {[%emt 0:00:06]} O-O {[%emt 0:04:56]} 12. Bf4 {[%emt 0:01:38]} a5 {[%emt 0:10:03]} 13. Ne5 {[%emt 0:04:30]} Nxe5 {[%emt 0:04:31]} 14. Bxe5 {[%emt 0:00:06]} Bb4 {[%emt 0:03:58]} 15. Re2 {[%emt 0:02:12]} Bg4 {[%emt 0:03:29]} 16. f3 {[%emt 0:01:47]} Bh5 {[%emt 0:02:38]} 17. a3 {[%emt 0:04:36]} Be7 {[%emt 0:01:29]} 18. Kh1 {[%emt 0:08:20]} Bg6 {[%emt 0:06:39]} 19. Bxd4 {[%emt 0:20:23]} a4 {[%emt 0:01:46]} 20. Bc5 {[%emt 0:01:02]} Bd6 {[%emt 0:03:17]} 21. Bxd6 {[%emt 0:00:28]} Qxd6 {[%emt 0:00:13]} 22. Nc1 {[%emt 0:00:14]} h5 {[%emt 0:02:46]} 23. d4 {[%emt 0:07:49]} h4 {[%emt 0:01:46]} 24. Re5 {[%emt 0:02:24]} Rae8 {[%emt 0:02:51]} 25. c5 {[%emt 0:01:56]} Qd7 {[%emt 0:02:12]} 26. Ne2 {[%emt 0:03:41]} Nd5 {[%emt 0:09:27]} 27. Qd2 {[%emt 0:06:00]} f6 {[%emt 0:02:23]} 28. Rxe8 {[%emt 0:01:30]} Rxe8 {[%emt 0:00:06]} 29. gxh4 {[%emt 0:04:32]} Ne3 {[%emt 0:01:22]} 30. Nf4 {[%emt 0:01:10]} Bf5 {[%emt 0:01:47]} 31. Rg1 {[%emt 0:03:04]} c6 {[%emt 0:02:13]} 32. Bf1 {[%emt 0:02:11]} Nxf1 {[%emt 0:02:18]} 33. Rxf1 {[%emt 0:00:02]} Kf7 {[%emt 0:01:08]} 34. h5 {[%emt 0:01:13]} Qe7 {[%emt 0:00:58]} 35. Kg2 {[%emt 0:02:10]} Qd7 {[%emt 0:04:08]} 36. Kg3 {[%emt 0:01:57]} Bh7 {[%emt 0:00:32]} 37. h4 {[%emt 0:02:29]} Bf5 {[%emt 0:05:48]} 38. Rd1 {[%emt 0:02:22]} Qe7 {[%emt 0:00:28]} 39. Qc3 {[%emt 0:01:12]} Qe3 {[%emt 0:00:53]} 40. Qxe3 {[%emt 0:03:51]} Rxe3 {[%emt 0:00:02]} 41. Kf2 {[%emt 0:30:30]} Rb3 {[%emt 0:30:39]} 42. Rd2 {[%emt 0:02:04]} Be6 {[%emt 0:00:00]} 43. Ne2 {[%emt 0:00:00]} Bd5 {[%emt 0:00:00]} 44. Nc3 {[%emt 0:00:00]} Kf8 {[%emt 0:00:00]} 45. Kg3 {[%emt 0:00:00]} Bf7 {[%emt 0:00:00]} 46. Kg4 {[%emt 0:00:00]} Be6+ {[%emt 0:00:00]} 47. Kf4 {[%emt 0:00:00]} Bd5 {[%emt 0:00:00]} 48. Rf2 {[%emt 0:00:00]} Kf7 {[%emt 0:00:00]} 49. Kf5 {[%emt 0:00:00]} Be6+ {[%emt 0:00:00]} 50. Ke4 {[%emt 0:00:00]} Bc4 {[%emt 0:00:00]} 51. f4 {[%emt 0:00:00]} Be6 {[%emt 0:00:00]} 52. f5 {[%emt 0:00:00]} Bc4 {[%emt 0:00:00]} 53. Rd2 {[%emt 0:00:00]} Ke7 {[%emt 0:00:00]} 54. d5 {[%emt 0:00:00]} Bxd5+ {[%emt 0:00:00]} 55. Nxd5+ {[%emt 0:00:00]} cxd5+ {[%emt 0:00:00]} 56. Kxd5 {[%emt 0:00:00]} Kd7 {[%emt 0:02:20]} 57. Rg2 {[%emt 0:04:00]} Rd3+ {[%emt 0:01:53]} 58. Kc4 {[%emt 0:00:00]} Rh3 {[%emt 0:01:01]} 59. Kb5 {[%emt 0:00:00]} Rxh4 {[%emt 0:01:22]} 60. Rxg7+ {[%emt 0:00:00]} Kc8 {[%emt 0:00:14]} 61. Kb6 {[%emt 0:00:00]} Rh2 {[%emt 0:02:02]} 62. h6 {[%emt 0:00:00]} Rxh6 {[%emt 0:00:15]} 63. Rg8+ {[%emt 0:00:00]} Kd7 {[%emt 0:00:04]} 64. Kxb7 {[%emt 0:00:00]} Rh7 {[%emt 0:00:44]} 65. c6+ {[%emt 0:00:00]} Kd6+ {[%emt 0:00:29]} 66. Kb6 {[%emt 0:00:00]} Rh2 {[%emt 0:01:07]} 67. Rd8+ {[%emt 0:00:00]} Ke7 {[%emt 0:00:08]} 68. c7 {[%emt 0:00:02]} Rxb2+ {[%emt 0:00:06]} 69. Ka5 {[%emt 0:00:07]} 1-0

[Event "Frauenbundesliga 2024-25"]
[Site "Germany"]
[Date "2025.02.15"]
[Round "5.8"]
[White "Gueci, Tea"]
[Black "Roessler, Ulrike"]
[Result "1-0"]
[Annotator "ChessBase"]
[ECO "B51"]
[WhiteElo "2198"]
[BlackElo "2021"]
[PlyCount "55"]
[EventDate "2024.11.06"]
[EventType "team-tourn"]
[EventCountry "GER"]
[SourceTitle "playchess.com"]
[Source "ChessBase"]
[SourceQuality "1"]
[TimeControl "40/5400+30:1800+30"]

1. e4 {[%emt 0:00:02]} c5 {[%emt 0:00:04]} 2. Nf3 {[%emt 0:00:03]} d6 {[%emt 0:00:05]} 3. Bb5+ {[%emt 0:00:04]} Nd7 {[%emt 0:00:04]} 4. O-O {[%emt 0:00:04]} a6 {[%emt 0:00:05]} 5. Be2 {[%emt 0:00:03]} Ngf6 {[%emt 0:01:07]} 6. d3 {[%emt 0:00:14]} g6 {[%emt 0:00:30]} 7. c4 {[%emt 0:00:23]} b5 {[%emt 0:01:50]} 8. d4 {[%emt 0:06:54]} cxd4 {[%emt 0:04:42]} 9. Nxd4 {[%emt 0:03:31]} Bg7 {[%emt 0:01:18]} 10. cxb5 {[%emt 0:02:24]} O-O {[%emt 0:06:21]} 11. Nc3 {[%emt 0:04:40]} Nc5 {[%emt 0:09:48]} 12. f3 {[%emt 0:07:18]} axb5 {[%emt 0:09:43]} 13. Bxb5 {[%emt 0:05:20]} Ba6 {[%emt 0:10:40]} 14. Bxa6 {[%emt 0:02:37]} Rxa6 {[%emt 0:02:53]} 15. Be3 {[%emt 0:02:51]} Qb8 {[%emt 0:05:32]} 16. Ndb5 {[%emt 0:12:59]} Nfd7 {[%emt 0:03:53]} 17. Qe2 {[%emt 0:06:39]} Na4 {[%emt 0:06:38]} 18. Rab1 {[%emt 0:08:14]} Nxc3 {[%emt 0:08:26]} 19. Nxc3 {[%emt 0:02:07]} Qa8 {[%emt 0:00:14]} 20. Nd5 {[%emt 0:04:46]} Rxa2 {[%emt 0:01:18]} 21. Nxe7+ {[%emt 0:00:39]} Kh8 {[%emt 0:00:04]} 22. Qd1 {[%emt 0:08:14]} Ne5 {[%emt 0:06:35]} 23. Bd4 {[%emt 0:04:19]} Qb7 {[%emt 0:04:29]} 24. Nd5 {[%emt 0:00:54]} f5 {[%emt 0:03:23]} 25. Bc3 {[%emt 0:04:17]} fxe4 {[%emt 0:05:01]} 26. fxe4 {[%emt 0:00:05]} Rxf1+ {[%emt 0:00:04]} 27. Qxf1 {[%emt 0:00:26]} Ng4 {[%emt 0:00:10]} 28. Qf8# {[%emt 0:00:11]} 1-0